[Event "US Masters 2022"]
[Site "Charlotte"]
[Date "2022.11.25"]
[Round "3.19"]
[White "Yoo, Christopher Woojin"]
[Black "Park, Evan"]
[Result "1-0"]
[ECO "D36"]
[WhiteElo "2573"]
[BlackElo "2364"]
[Annotator "TA"]
[PlyCount "142"]
[EventDate "2022.11.23"]
[EventType "swiss"]
[EventCountry "USA"]
[SourceTitle "playchess.com"]
[Source "ChessBase"]
[SourceQuality "1"]
[TimeControl "5400+30"]

{[%evp 23,142,24,26,22,35,31,38,33,36,27,29,0,27,24,29,29,47,29,29,29,77,68,76,69,76,64,92,65,87,37,37,14,15,16,16,16,26,18,36,25,46,29,56,60,105,100,100,71,270,288,275,284,270,169,169,169,169,169,221,221,194,169,181,184,193,105,105,105,116,97,97,97,97,97,120,120,116,0,105,104,125,127,120,97,97,97,105,79,131,131,276,263,250,274,274,273,218,47,116,124,294,125,295,270,270,270,475,475,474,467,463,449,449,435,433,420,396,390,389,374,354]} 1. c4 {[%emt 0:00:32]} e6 {[%emt 0:00:13]} 2. Nc3 {[%emt 0:00:16]} d5 {[%emt 0:01:37]} 3. d4 {[%emt 0:00:07]} Nf6 {[%emt 0:02:35]} 4. cxd5 {[%emt 0:00:22]} exd5 {[%emt 0:00:01]} 5. Bg5 {[%emt 0:00:09]} Be7 {[%emt 0:00:04]} 6. e3 {[%emt 0:01:06]} h6 {[%emt 0:01:00]} 7. Bh4 {[%emt 0:00:16]} c6 {[%emt 0:01:12]} 8. Qc2 {[%emt 0:01:21]} Nbd7 {[%emt 0:03:06]} 9. Bd3 {[%emt 0:01:13]} O-O {[%emt 0:00:26]} 10. Nf3 {[%emt 0:01:27]} Re8 {[%emt 0:02:26]} 11. O-O {[%emt 0:01:20]} Nh5 {[%emt 0:01:55]} 12. Bxe7 {[%emt 0:00:56]} Qxe7 {[%emt 0:00:07]} 13. Rab1 {[%emt 0:03:03] D36: Queen's Gambit Declined: Exchange Variation: Main line (5 Bg5 c6 6 Qc2).} a5 {[%emt 0:02:46] is now more promising than 13...Nhf6.} 14. Na4 $5 {[%emt 0:05:58][%mdl 4] Exploring less charted territory.} Nhf6 {[%emt 0:15:52]} 15. a3 {[%emt 0:02:26] White is slightly better.} Ne4 {[%emt 0:10:06]} 16. Rfe1 {[%emt 0:01:40] [#]} Nd6 $146 {[%emt 0:06:29]} ({Predecessor:} 16... Qd6 17. Nd2 Ndf6 18. Nb6 Ng4 19. Nf1 Rb8 20. f3 c5 21. Nxc8 Rbxc8 22. fxe4 dxe4 {1-0 (30) Kasueschke,G (2030)-Fleckner,H (1830) Bad Woerishofen 2001}) 17. b4 {[%emt 0:06:57]} axb4 {[%emt 0:00:35]} (17... b5 $5 {[%cal Rb5a4]} 18. Nc5 (18. Qxc6 $2 Bb7 $19) 18... Nc4 $11) 18. axb4 {[%emt 0:00:06]} b5 {[%emt 0:11:39]} 19. Nc5 {[%emt 0:02:18]} (19. Qxc6 $2 Bb7 20. Qc2 bxa4 $19) 19... Nxc5 {[%emt 0:00:45]} 20. Qxc5 {[%emt 0:05:11]} Bb7 {[%emt 0:02:41]} 21. Ra1 {[%emt 0:02:58]} Nc4 {[%emt 0:02:10]} (21... Qd7 $11) 22. Rxa8 $16 {[%emt 0:01:53]} Bxa8 {[%emt 0:00:53]} 23. Ra1 {[%emt 0:01:52]} Bb7 {[%emt 0:03:18]} 24. Ra7 {[%emt 0:04:59]} Nb2 {[%emt 0:02:30]} 25. Bf5 {[%emt 0:05:30]} Qc7 {[%emt 0:02:41]} 26. Nd2 {[%emt 0:07:51]} (26. Ne5 $16) 26... Na4 $14 {[%emt 0:01:15] Inhibits g3.} 27. Qc1 {[%emt 0:02:03]} Qb8 {[%emt 0:03:30]} 28. Ra5 $40 {[%emt 0:00:40][%mdl 128] White is up to no good.} Qd6 {[%emt 0:00:55]} 29. Qa3 {[%emt 0:01:21]} Bc8 {[%emt 0:00:56]} 30. Bd3 {[%emt 0:01:50]} Qf6 {[%emt 0:02:00]} 31. Nf3 {[%emt 0:03:49]} (31. Ra7 {seems wilder.} Re7 32. Ra8 Re8 33. Nb3) 31... Bf5 {[%emt 0:02:52]} 32. Bf1 {[%emt 0:00:23] Threatens to win with Ne5.} (32. Ne5 $5 {[%cal Rd3f1]}) 32... Qd6 {[%emt 0:03:39]} 33. Ne5 {[%emt 0:02:19]} Bd7 {[%emt 0:04:05]} 34. Ra7 {[%emt 0:02:02]} Rd8 {[%emt 0:00:16]} 35. Bd3 {[%emt 0:02:00] Black must now prevent Nxd7. White is much more active.} (35. Nxd7 {simplifies} Rxd7 36. Ra6 Rb7 37. Bxb5 Rxb5 38. Ra8+) 35... f6 $2 {[%emt 0:00:29]} (35... Be8 $16) 36. Nxd7 $1 $18 {[%emt 0:02:39]} Rxd7 {[%emt 0:00:02]} 37. Ra6 {[%emt 0:00:32]} Rb7 {[%emt 0:02:57] [#]} 38. Bxb5 $1 {[%emt 0:04:04][%mdl 512]} Rxb5 {[%emt 0:00:51]} 39. Rxa4 {[%emt 0:00:17][%mdl 4096] Endgame KQR-KQR} (39. Qxa4 $6 Rxb4 40. Qc2 (40. Qxc6 $2 Rb1+) 40... Qb8 $14) 39... Qe6 {[%emt 0:01:24]} 40. Qc3 {[%emt 0:02:33]} Rb8 {[%emt 0:01:11]} (40... Qc8 $142 41. g3 Kf7 42. Ra7+ Kg8) 41. Ra6 {[%emt 0:02:33]} Qf5 {[%emt 0:00:35] ( -> ...Qb1+)} 42. Ra1 {[%emt 0:01:19] Inhibits Qb1+.} Kh7 {[%emt 0:00:28]} 43. h3 {[%emt 0:00:16]} ({Don't take} 43. Qxc6 $6 Rxb4 44. Qc1 h5 $16) 43... h5 {[%emt 0:01:00]} 44. h4 {[%emt 0:03:08]} ({Resist} 44. Qxc6 $6 Rxb4 45. Qc3 Rb8 $16) (44. Qc5 $18) 44... Qe4 $16 {[%emt 0:00:23]} 45. g3 {[%emt 0:00:15]} Kg6 {[%emt 0:01:17]} 46. Qc5 {[%emt 0:02:15]} Rb5 {[%emt 0:01:18]} 47. Qf8 {[%emt 0:02:16] And now Ra7 would win.} Rb7 {[%emt 0:00:02] Prevents Ra7.} 48. Qd6 {[%emt 0:00:58]} (48. Re1 {feels hotter.} Rb5 49. Rc1 Rb6 50. Qc5) 48... Kh7 {[%emt 0:01:02]} 49. Rc1 {[%emt 0:00:51]} Rb6 {[%emt 0:00:12]} 50. Ra1 {[%emt 0:03:20]} ({But not} 50. Rxc6 $6 Qb1+ 51. Kh2 Qf5 $11) (50. Qc5 {simplifies} Ra6 51. Qc2 Qxc2 52. Rxc2 Rb6 53. Kg2) 50... Rb7 $1 {[%emt 0:00:58]} 51. Qc5 {[%emt 0:01:45] Prevents Rb6.} Kg6 {[%emt 0:01:04]} 52. Rc1 {[%emt 0:00:08]} Rb5 {[%emt 0:01:00]} 53. Qxc6 {[%emt 0:00:56]} Rxb4 {[%emt 0:00:04]} 54. Qc2 {[%emt 0:00:09]} Kf5 {[%emt 0:01:26]} 55. Qxe4+ {[%emt 0:01:16]} Kxe4 {[%emt 0:00:44] KR-KR} (55... dxe4 $142 56. Rc2 Kg4) 56. Kg2 $1 {[%emt 0:00:10] aiming for Rc7.} Rb7 {[%emt 0:00:42] Prevents Rc7.} (56... Rb6 $16 {might work better.} 57. Rc8 g6) 57. Rc8 $18 {[%emt 0:00:48]} Kf5 {[%emt 0:00:55]} 58. Rd8 {[%emt 0:01:20]} Ke6 {[%emt 0:00:22]} 59. Re8+ {[%emt 0:00:18]} Kf5 {[%emt 0:00:36]} 60. f3 $2 {[%emt 0:00:34]} ({White should try} 60. Kf3 $1 $18) 60... Rb2+ {[%emt 0:00:13]} ({Better is} 60... Rb1 $14) 61. Kh3 $16 {[%emt 0:00:04]} Re2 $2 {[%emt 0:02:04] [#]} (61... g5 $16 62. g4+ hxg4+ 63. fxg4+ Kg6) 62. Re7 {[%emt 0:00:56]} (62. g4+ $1 $18 Kg6 63. Re7) 62... Kg6 $2 {[%emt 0:00:21] [#]} (62... g5 $16 63. g4+ Kg6) 63. g4 $1 $18 {[%emt 0:00:08]} hxg4+ {[%emt 0:00:37]} 64. fxg4 {[%emt 0:00:10]} Ra2 $2 {[%emt 0:01:02]} (64... Re1 {was necessary.} 65. Kg3 Kh6) 65. Kg3 {[%emt 0:00:20]} Rb2 {[%emt 0:01:06]} 66. Rc7 {[%emt 0:00:40]} Rb8 {[%emt 0:00:00]} 67. Kf4 {[%emt 0:00:24]} Ra8 {[%emt 0:00:19]} 68. Re7 {[%emt 0:00:55]} Ra1 {[%emt 0:00:27]} 69. Rd7 {[%emt 0:01:29]} Ra5 {[%emt 0:00:41] White is winning.} 70. Rd6 {[%emt 0:00:15]} Rb5 {[%emt 0:00:22]} 71. g5 {[%emt 0:00:31]} Ra5 {[%emt 0:01:11] Weighted Error Value: White=0.18 (very precise) /Black=0.21 (precise)} 1-0

[Event "US Masters 2022"]
[Site "Charlotte"]
[Date "2022.11.25"]
[Round "3.21"]
[White "Wang, Jason"]
[Black "Gazik, Viktor"]
[Result "0-1"]
[ECO "E16"]
[WhiteElo "2345"]
[BlackElo "2564"]
[Annotator "TA"]
[PlyCount "84"]
[EventDate "2022.11.23"]
[EventType "swiss"]
[EventCountry "USA"]
[SourceTitle "playchess.com"]
[Source "ChessBase"]
[SourceQuality "1"]
[TimeControl "5400+30"]

{[%evp 13,84,18,14,4,10,0,2,0,6,10,11,0,0,-12,0,0,0,0,0,0,17,17,15,9,25,25,28,27,22,19,33,22,25,0,0,0,0,0,0,0,0,-13,-15,-353,-347,-350,-337,-408,-395,-385,-376,-401,-404,-379,-380,-377,-372,-477,-466,-466,-433,-589,-491,-1126,-818,-799,-799,-29974,-29975,-29966,-6399,-29972,-11468]} 1. d4 {[%emt 0:00:03]} Nf6 {[%emt 0:03:34]} 2. c4 {[%emt 0:00:04]} e6 {[%emt 0:00:06]} 3. Nf3 {[%emt 0:00:04]} Bb4+ {[%emt 0:00:09]} 4. Nbd2 {[%emt 0:00:07]} a5 {[%emt 0:00:03]} 5. g3 {[%emt 0:04:55]} b6 {[%emt 0:00:23]} 6. Bg2 {[%emt 0:01:16]} Bb7 {[%emt 0:00:04]} 7. O-O {[%emt 0:00:43]} O-O {[%emt 0:00:05]} 8. Qc2 {[%emt 0:06:18] E16: Queen's Indian: 4 g3 Bb7 5 Bg2 Bb4+.} Bxd2 {[%emt 0:01:03]} 9. Bxd2 {[%emt 0:04:28]} Be4 {[%emt 0:00:23]} 10. Qc1 {[%emt 0:02:50] The position is equal.} d6 {[%emt 0:00:10]} 11. Bc3 {[%emt 0:06:31]} Nbd7 {[%emt 0:00:07]} 12. Qe3 {[%emt 0:02:15] [#]} Re8 $146 {[%emt 0:10:03]} ({Predecessor:} 12... Qb8 13. Bh3 b5 14. b3 bxc4 15. bxc4 Qa7 16. Nd2 Bg6 17. Bg2 Rae8 18. Bc6 Qa6 {0-1 (40) Nikolaidis,K (2182)-Gouloutis,N (2382) Rio Achaea 2018}) 13. h3 {[%emt 0:11:58]} e5 {[%emt 0:10:19]} 14. Rad1 {[%emt 0:11:01]} exd4 {[%emt 0:07:58]} 15. Qxd4 {[%emt 0:00:37]} a4 {[%emt 0:00:07]} 16. Rfe1 {[%emt 0:01:44]} Nc5 {[%emt 0:02:22]} 17. Nd2 {[%emt 0:05:52]} Bxg2 {[%emt 0:00:35]} 18. Kxg2 {[%emt 0:00:05]} Qd7 {[%emt 0:01:33]} 19. e4 {[%emt 0:01:50]} Qc6 {[%emt 0:00:33][%cal Rc5e4]} 20. f3 {[%emt 0:00:15]} Ne6 {[%emt 0:00:19]} 21. Qd3 {[%emt 0:04:01]} Nd7 {[%emt 0:02:18]} 22. f4 {[%emt 0:02:50]} Nec5 {[%emt 0:05:14]} 23. Qf3 {[%emt 0:03:16]} Re6 {[%emt 0:03:56]} 24. Re3 {[%emt 0:02:15]} Rae8 {[%emt 0:02:07]} 25. Rde1 {[%emt 0:00:56]} b5 {[%emt 0:06:51]} 26. cxb5 {[%emt 0:03:54]} Qxb5 {[%emt 0:00:12]} 27. h4 {[%emt 0:02:23]} Nf6 {[%emt 0:04:26][%cal Bd7f6,Bf6g4,Bg4e3][%mdl 32]} 28. g4 $2 {[%emt 0:02:50][%mdl 8192] [#] Now White is beyond hope.} (28. b3 $11 {and White has nothing to worry.}) 28... Nxg4 $1 $19 {[%emt 0:02:43][%mdl 512]} 29. f5 {[%emt 0:07:18][%cal Of3g4]} Nxe3+ {[%emt 0:02:57]} 30. Qxe3 {[%emt 0:00:18]} Rxe4 {[%emt 0:04:09]} 31. Nxe4 {[%emt 0:06:06]} Nxe4 {[%emt 0:02:06]} 32. Qf3 {[%emt 0:00:41]} Nxc3 {[%emt 0:00:31]} 33. Rxe8+ {[%emt 0:00:15]} Qxe8 {[%emt 0:00:03]} 34. bxc3 {[%emt 0:00:07][%mdl 4096] Endgame KQ-KQ} h6 {[%emt 0:01:48]} 35. f6 {[%emt 0:01:50]} gxf6 {[%emt 0:02:51][%cal Bg7f6,Bf6f5][%mdl 32]} 36. Qg4+ {[%emt 0:01:52]} Kf8 {[%emt 0:00:42] And now ...Qb5 would win.} 37. Kf2 {[%emt 0:00:25]} Qc6 {[%emt 0:06:24] Strongly threatening ...Qc5+.} 38. Ke2 {[%emt 0:01:30]} (38. Qd4 $142 Ke7 39. Ke3) 38... Qb5+ {[%emt 0:01:06]} 39. Kd2 {[%emt 0:00:59]} f5 {[%emt 0:03:34]} 40. Qd4 {[%emt 0:01:13]} Qb2+ {[%emt 0:01:03]} 41. Kd3 {[%emt 0:00:46]} Qb1+ {[%emt 0:00:11]} 42. Kc4 {[%emt 0:01:06]} Qf1+ {[%emt 0:00:28] Weighted Error Value: White=0.76/Black=0.13 (very precise)} (42... Qxa2+ $142 43. Kd3 Qb1+ 44. Ke3 a3 45. Qh8+ Ke7 46. Qg7 a2 47. c4 a1=Q 48. Qxa1 Qxa1 49. Kd3 c5 50. Kc2 f4 51. Kd2 Qb2+ 52. Kd3 f3 53. Ke4 f2 54. Kf4 f1=Q+ 55. Kg4 Qg7+ 56. Kh5 Qg6#) 0-1

[Event "US Masters 2022"]
[Site "Charlotte"]
[Date "2022.11.25"]
[Round "3.22"]
[White "Fishbein, Alexander"]
[Black "Canty, James"]
[Result "1/2-1/2"]
[ECO "B90"]
[WhiteElo "2389"]
[BlackElo "2158"]
[Annotator "TA"]
[PlyCount "118"]
[EventDate "2022.11.23"]
[EventType "swiss"]
[EventCountry "USA"]
[SourceTitle "playchess.com"]
[Source "ChessBase"]
[SourceQuality "1"]
[TimeControl "5400+30"]

{[%evp 15,118,0,0,0,8,-1,22,29,29,-17,14,14,22,22,30,22,35,31,36,16,16,0,58,53,66,81,81,45,56,0,56,63,57,47,165,31,74,87,90,27,89,99,111,9,9,9,12,9,21,22,33,33,34,35,34,35,35,34,52,0,0,0,0,0,0,0,0,0,0,0,0,0,0,0,33,35,38,38,63,63,63,63,63,63,63,63,63,63,63,63,87,64,84,4,4,0,0,0,0,-40,-40,-40,29979,-37,0]} 1. e4 {[%emt 0:00:10]} c5 {[%emt 0:10:32]} 2. Nf3 {[%emt 0:00:04]} d6 {[%emt 0:00:18]} 3. d4 {[%emt 0:00:20]} cxd4 {[%emt 0:00:06]} 4. Nxd4 {[%emt 0:00:02]} Nf6 {[%emt 0:00:07]} 5. Nc3 {[%emt 0:00:01]} a6 {[%emt 0:00:36]} 6. a4 {[%emt 0:00:51]} e5 {[%emt 0:00:04]} 7. Nf3 {[%emt 0:00:02]} Be7 {[%emt 0:00:19]} 8. Bc4 {[%emt 0:00:14]} Be6 {[%emt 0:00:18]} 9. Qe2 {[%emt 0:00:40] B90: Sicilian Najdorf: Unusual White 6th moves, 6 Be3 Ng4 and 6 Be3 e5.} Qc8 {[%emt 0:01:53]} 10. Bb3 {[%emt 0:10:21]} Nbd7 {[%emt 0:03:51]} 11. Bg5 {[%emt 0:02:47] The position is equal.} Nc5 {[%emt 0:04:22] [#]} 12. Bxf6 $146 {[%emt 0:03:38]} (12. Ba2 {should be considered.}) ({Predecessor:} 12. Ba2 Bxa2 13. Rxa2 Ne6 14. Bxf6 Nf4 15. Qf1 Bxf6 16. g3 Ne6 17. Qe2 O-O 18. O-O {0-1 (51) Kaczur,F (2495)-Ajay,K (2426) Budapest 2021}) 12... Bxf6 {[%emt 0:03:22]} (12... Nxb3 {simplifies} 13. cxb3 Bxf6 14. Nd2 Qc5) 13. Ba2 {[%emt 0:05:43]} O-O {[%emt 0:09:41]} 14. O-O {[%emt 0:03:07]} Qc6 {[%emt 0:23:32]} 15. a5 {[%emt 0:09:54]} Rac8 {[%emt 0:01:59]} 16. Nd5 {[%emt 0:06:31]} Bd8 {[%emt 0:01:32]} 17. b4 {[%emt 0:06:47]} Nd7 {[%emt 0:03:59]} 18. Bb3 {[%emt 0:02:06]} Kh8 {[%emt 0:02:49]} (18... Nf6 $11) 19. Nd2 $36 {[%emt 0:04:16][%mdl 2048] aiming for Ba4. Black is under pressure.} Bxd5 {[%emt 0:08:02]} 20. Bxd5 {[%emt 0:00:20]} Qc7 {[%emt 0:00:13]} 21. Bb3 {[%emt 0:08:44]} Qc3 {[%emt 0:04:47]} 22. Rab1 {[%emt 0:02:28]} ({White should try} 22. Ra4 $14) 22... Nb8 {[%emt 0:03:30]} (22... Qxb4 $11 23. Bd5 Qxa5 24. Rxb7 (24. Nc4 Qc5 $11) 24... Rc7) 23. Nc4 {[%emt 0:07:29]} Qxb4 {[%emt 0:07:07]} 24. Rfd1 {[%emt 0:05:25]} Rc6 {[%emt 0:00:28]} (24... Bc7 $14) 25. Qd3 {[%emt 0:04:09]} (25. Ba2 $1 $18 Qa4 26. c3 (26. Rxb7 $2 Qxa2 27. Nxd6 Bc7 $19) 26... Bxa5 27. Nxd6 (27. Rxb7 Rc7 $18) 27... Rxd6 28. Rxd6) 25... Bc7 {[%emt 0:02:11]} 26. c3 {[%emt 0:03:12][%mdl 1024] White has strong compensation.} Qc5 {[%emt 0:00:32]} 27. Ba2 {[%emt 0:00:58]} (27. Qh3 $16) 27... Qa7 {[%emt 0:00:55]} (27... Nd7 $11) 28. Qh3 $1 $16 {[%emt 0:00:22]} Rc5 {[%emt 0:03:38] [#]} 29. Kf1 {[%emt 0:05:56] White is much more active. The black rooks are badly placed.} ({Resist} 29. Nxd6 Bxd6 30. Rxd6 Rxa5 31. Bxf7 Rb5 $14) (29. Rd3 $1 $16) 29... Nc6 $11 {[%emt 0:02:27]} 30. Qd7 {[%emt 0:00:19]} Nxa5 {[%emt 0:01:12]} 31. Qe7 {[%emt 0:04:34][%cal Re7f8]} Qb8 {[%emt 0:00:51]} 32. Nxa5 {[%emt 0:00:43]} Rxa5 {[%emt 0:00:10] [#]} (32... Bxa5 {simplifies} 33. Rxb7 Qc8 34. Bxf7 Qd8) 33. Rxb7 $1 {[%emt 0:00:21][%mdl 64] Double Attack} Qd8 {[%emt 0:00:12]} 34. Qxd8 {[%emt 0:00:38]} (34. Qxc7 {simplifies} Qxc7 35. Rxc7 Rxa2 36. Rxd6 f6 37. g4) 34... Bxd8 {[%emt 0:00:14]} 35. Bxf7 {[%emt 0:00:12]} Rb5 {[%emt 0:00:50]} 36. Rd7 {[%emt 0:01:07]} Bb6 {[%emt 0:01:01]} 37. Rd2 {[%emt 0:00:27]} ({Better is} 37. R1xd6 $14 g6 38. Rb7) 37... Bc5 {[%emt 0:00:22]} 38. g3 {[%emt 0:00:47]} (38. Ra2 {with more complications.} Rb1+ 39. Ke2 a5 40. Rxa5 g6 41. Be6) 38... a5 {[%emt 0:00:15]} 39. Ra2 {[%emt 0:00:12]} a4 {[%emt 0:00:13]} 40. Rxa4 {[%emt 0:01:05]} Rb2 {[%emt 0:00:36]} 41. Kg2 {[%emt 0:00:20]} Rxf2+ {[%emt 0:00:08]} 42. Kh3 {[%emt 0:00:01]} Rc2 {[%emt 0:01:15]} 43. Ra1 {[%emt 0:01:01]} Rxc3 {[%emt 0:00:43]} 44. Rb1 {[%emt 0:00:25]} Be3 {[%emt 0:00:29]} 45. Rbb7 {[%emt 0:00:29]} Bh6 {[%emt 0:00:34]} 46. Rxd6 {[%emt 0:00:16]} Re3 {[%emt 0:00:36]} 47. Bd5 {[%emt 0:00:16]} Bg5 {[%emt 0:00:04]} 48. Rdd7 {[%emt 0:00:43]} Bf6 {[%emt 0:00:08]} 49. Rf7 {[%emt 0:00:37][%cal Rf7f8]} Rd8 {[%emt 0:00:09]} 50. Kg4 {[%emt 0:00:14]} Rd3 {[%emt 0:00:33]} 51. Be6 {[%emt 0:01:47]} Rd2 {[%emt 0:00:55]} 52. h4 {[%emt 0:00:21] Strongly threatening Kh5.} Rg2 {[%emt 0:00:27]} 53. Bf5 {[%emt 0:01:00]} h5+ {[%emt 0:01:08] [#]} 54. Kxh5 {[%emt 0:01:18]} ({White should play} 54. Kh3 $1 $16 {[%cal Rh3g2]} Re2 55. Bg6) 54... Rxg3 {[%emt 0:00:04]} 55. Be6 {[%emt 0:00:27][%cal Of7f6] Rxf6! would kill now.} Re8 {[%emt 0:00:53]} (55... g6+ {leads to mate.} 56. Kh6) 56. Bd5 {[%emt 0:00:40][%cal Of7f6] Threatening mate with Rxf6!} Rh3 {[%emt 0:00:25]} 57. Kg4 {[%emt 0:00:28]} Rxh4+ {[%emt 0:00:09]} 58. Kg3 {[%emt 0:00:10][%cal Of7f6] Threatens to win with Rxf6!} Rh3+ $2 {[%emt 0:01:44][%mdl 8192]} 59. Kg4 $2 {[%emt 0:00:30]} (59. Kxh3 {mates} Rc8 60. Kg4 Rc1 61. Rf8+ Kh7 62. Rxf6 Rg1+ 63. Kh3 Rh1+ 64. Kg2) 59... Rh4+ {[%emt 0:00:30] Weighted Error Value: White=0.27 (precise) /Black=0.28 (precise)} 1/2-1/2

[Event "US Masters 2022"]
[Site "Charlotte"]
[Date "2022.11.25"]
[Round "3.23"]
[White "Clasby, Derek"]
[Black "Cordova, Emilio"]
[Result "0-1"]
[ECO "B30"]
[WhiteElo "2252"]
[BlackElo "2561"]
[Annotator "TA"]
[PlyCount "72"]
[EventDate "2022.11.23"]
[EventType "swiss"]
[EventCountry "USA"]
[SourceTitle "playchess.com"]
[Source "ChessBase"]
[SourceQuality "1"]
[TimeControl "5400+30"]

{[%evp 9,72,12,66,6,21,6,5,6,5,5,6,0,2,-9,-21,-12,-7,-22,-25,-40,-46,-81,-71,-143,-75,-267,-35,-245,-236,-179,-177,-328,-281,-753,-753,-753,-750,-732,-7,-732,-732,-732,-732,-725,-725,-725,-725,-710,-710,-1022,-998,-1317,-1317,-1189,-1136,-1510,-1442,-1488,-1487,-1448,-1443,-1365,-1363,-1278,-1117]} 1. e4 {[%emt 0:00:04]} c5 {[%emt 0:01:56]} 2. Nf3 {[%emt 0:00:25]} Nc6 {[%emt 0:00:17]} 3. Bb5 {[%emt 0:00:36]} e6 {[%emt 0:00:12]} 4. O-O {[%emt 0:01:03]} Nge7 {[%emt 0:00:08]} 5. Re1 {[%emt 0:02:41]} b6 {[%emt 0:01:28]} (5... a6 $11 6. Be2 b5) 6. b3 {[%emt 0:03:54] B30: Sicilian: 2...Nc6 3 Bb5, lines without ...g6.} (6. c3 $14) 6... Bb7 $11 {[%emt 0:00:35]} 7. Bb2 {[%emt 0:00:29]} a6 {[%emt 0:00:07]} 8. Bf1 {[%emt 0:02:11] The position is equal.} d5 {[%emt 0:00:29]} 9. exd5 {[%emt 0:01:18]} Nxd5 {[%emt 0:00:09]} 10. d4 {[%emt 0:06:54]} Nf6 {[%emt 0:00:43] [#]} 11. a3 $146 {[%emt 0:06:17]} ({Predecessor:} 11. c4 cxd4 12. Nxd4 Bc5 13. Nxc6 Qxd1 14. Rxd1 Bxc6 15. Be2 Ne4 16. Bd4 O-O-O 17. Bxc5 Rxd1+ 18. Bxd1 Rd8 19. Bc2 Nxc5 20. Nc3 {½-½ (20) Czebe,A (2367)-Holm,K (2470) Novi Sad 2021}) 11... cxd4 {[%emt 0:09:27]} (11... Nxd4 {feels hotter.} 12. Nxd4 cxd4 13. Qxd4 Qc7) 12. Nxd4 {[%emt 0:01:05]} Nxd4 {[%emt 0:00:16]} 13. Bxd4 {[%emt 0:01:43]} Bd6 {[%emt 0:00:39]} 14. h3 {[%emt 0:12:12]} Qc7 {[%emt 0:02:00]} 15. Qc1 {[%emt 0:07:17]} O-O-O {[%emt 0:19:46]} 16. Qb2 {[%emt 0:04:25]} (16. Qe3 $142 Bh2+ 17. Kh1) 16... h5 {[%emt 0:00:34] Black is more active.} (16... Bh2+ $142 17. Kh1 Kb8) 17. Qc3 $2 {[%emt 0:13:11]} (17. Bd3 $17 {might work better.}) 17... Bh2+ $19 {[%emt 0:03:38]} 18. Kh1 {[%emt 0:03:21] [#]} Rxd4 {[%emt 0:02:04][%mdl 512]} 19. Qxd4 {[%emt 0:01:35] [#]} Ng4 $1 $36 {[%emt 0:00:08][%mdl 2112] White must now prevent ...Rd8. Keeping White busy.} 20. f4 $2 {[%emt 0:17:09]} (20. hxg4 hxg4 21. Qxg7 Qd8 22. Bxa6 Be5+ 23. Kg1 Bxg7 $19) (20. Re2 {was the only defense.} Be5 21. Rxe5) 20... Bxf4 {[%emt 0:01:02][%cal Of4e3] Dancing on a razor blade.} 21. hxg4 $2 {[%emt 0:04:13]} (21. Qxg7 Nf2+ 22. Kg1 Nxh3+ 23. Kh1) 21... hxg4+ {[%emt 0:00:16]} 22. Kg1 {[%emt 0:00:08]} Bh2+ {[%emt 0:20:19] This pair of bishops is nice.} 23. Kf2 {[%emt 0:00:10]} Qg3+ {[%emt 0:01:55]} ({Not} 23... Qxc2+ 24. Nd2 Kb8 25. Rac1 Qf5+ 26. Ke2 $16) 24. Ke2 {[%emt 0:00:06] [#]} Bf3+ $1 {[%emt 0:00:04][%mdl 576] Black is clearly winning.} 25. Kd2 {[%emt 0:06:59]} Rd8 {[%emt 0:00:07]} 26. Bxa6+ {[%emt 0:00:53]} Kc7 {[%emt 0:00:05] ( -> ...Qf4+)} 27. Qxd8+ {[%emt 0:01:03]} Kxd8 {[%emt 0:00:05]} 28. gxf3 {[%emt 0:00:19]} Qf2+ {[%emt 0:00:16][%mdl 64] Skewer} ({Weaker is} 28... gxf3 29. Rd1 $19) 29. Re2 {[%emt 0:02:26]} Qd4+ {[%emt 0:00:09]} 30. Bd3 {[%emt 0:00:37]} Bf4+ {[%emt 0:00:13]} 31. Kd1 {[%emt 0:00:12]} Qxa1 {[%emt 0:01:19][%cal Ra1b1]} 32. c3 {[%emt 0:00:12]} gxf3 {[%emt 0:00:11]} 33. Rf2 {[%emt 0:00:17]} g5 {[%emt 0:00:14][%cal Bg7g5,Bg5f4,Bf4f3][%mdl 32] And now ...g4 would win.} 34. Rxf3 {[%emt 0:01:10]} Qb2 {[%emt 0:00:12]} 35. Rxf4 {[%emt 0:00:22]} gxf4 {[%emt 0:00:05]} 36. Bc2 {[%emt 0:00:10]} f3 {[%emt 0:00:24] Weighted Error Value: White=0.95/Black=0.07 (flawless)} 0-1